fUSD/lending_fUSD_20250417
["ID","MTS","AMOUNT","RATE_DAILY","PERIOD"]
[358281272,1744894267816,-9999.0,0.00588,120]
[358281273,1744894267824,-9999.0,0.00588,120]
[358281274,1744894267833,-9999.0,0.00588,120]
[358281275,1744894267843,-9999.0,0.00588,120]
[358281276,1744894267853,-9999.0,0.00588,120]
[358281277,1744894267863,-9999.0,0.00588,120]
[358281278,1744894267872,-9999.0,0.00588,120]
[358281279,1744894267882,-9999.0,0.00588,120]
[358281280,1744894267891,-9999.0,0.00588,120]
[358281281,1744894267901,-9999.0,0.00588,120]
[358281282,1744894267910,-9999.0,0.00588,120]
[358281283,1744894267920,-9999.0,0.00588,120]
[358281284,1744894267929,-9999.0,0.00588,120]
[358281285,1744894267939,-9999.0,0.00588,120]
[358281286,1744894267949,-9999.0,0.00588,120]
[358281287,1744894267958,-9999.0,0.00588,120]
[358281288,1744894267969,-9999.0,0.00588,120]
[358281289,1744894267978,-9999.0,0.00588,120]
[358281290,1744894267988,-9999.0,0.00588,120]
[358281291,1744894267997,-9999.0,0.00588,120]
[358281292,1744894268008,-9999.0,0.00588,120]
[358281293,1744894268017,-9999.0,0.00588,120]
[358281294,1744894268027,-9999.0,0.00588,120]
[358281295,1744894268037,-9999.0,0.00588,120]
[358281296,1744894268046,-9999.0,0.00588,120]
[358281297,1744894268056,-9999.0,0.00588,120]
[358281298,1744894268066,-9999.0,0.00588,120]
[358281299,1744894268077,-9999.0,0.00588,120]
[358281300,1744894268086,-9999.0,0.00588,120]
[358281301,1744894268096,-9999.0,0.00588,120]
[358281302,1744894268105,-8888.0,0.00588,120]
[358281303,1744894268115,-2163.75213492,0.0059,120]
[358281304,1744894268124,-113283.240487,0.00595638,120]
[358281305,1744894268134,-150.0,0.00599,120]
[358281306,1744894268143,-39545.0,0.005997,80]
[358281307,1744894268152,-50000.0,0.006,2]
[358281308,1744894268161,-50000.0,0.006,120]
[358281309,1744894268170,-521.39,0.006,120]
[358281310,1744894268179,-2000.0,0.006,120]
[358281311,1744894268188,-1000.0,0.006,120]
[358281312,1744894268197,-151.0,0.006,120]
[358281313,1744894268206,-500.0,0.00602739,120]
[358281314,1744894268215,-500.0,0.00602739,120]
[358281315,1744894268224,-952.0,0.00602739,120]
[358281316,1744894268234,-317.0,0.006059,120]
[358281317,1744894268243,-216.53521442,0.00619178,120]
[358281318,1744894268252,-500.0,0.00619178,120]
[358281319,1744894268263,-952.0,0.00619178,120]
[358281320,1744894268271,-500.0,0.00619178,120]
[358281321,1744894268281,-500.0,0.00619178,120]
[358281322,1744894268290,-500.0,0.00619178,120]
[358281323,1744894268300,-500.0,0.00619178,120]
[358281324,1744894268312,-500.0,0.00619178,120]
[358281325,1744894268321,-500.0,0.00619178,120]
[358281326,1744894268329,-500.0,0.00619178,120]
[358281327,1744894268338,-500.0,0.00619178,120]
[358281328,1744894268349,-150.0,0.00628432,120]
[358281329,1744894268357,-181.12,0.00635616,120]
[358281330,1744894268367,-952.0,0.00635616,120]
[358281331,1744894268376,-150.0,0.00641926,120]
[358281332,1744894268385,-2000.0,0.00645,120]
[358281333,1744894268393,-2000.0,0.006456,120]
[358281334,1744894268403,-952.07,0.00652054,120]
[358281335,1744894268413,-11035.21,0.00653,2]
[358281336,1744894268423,-2207.04,0.00653,2]
[358281337,1744894268432,-441.41,0.00653,2]
[358281338,1744894268442,-24351.90934399,0.00654487,120]
[358281339,1744894268451,-1978.84624834,0.00655,120]
[358281340,1744894268461,-1241.4538178,0.00655649,120]
[358281341,1744894268471,-881.66783432,0.00666794,120]
[358281342,1744894268481,-678.65354403,0.00668336,120]
[358281343,1744894268490,-49911.17346836,0.00669,120]
[358281344,1744894268499,-150.0,0.00670444,120]
[358281345,1744894268508,-2000.0,0.0068,120]
[358281346,1744894268518,-200.0,0.00684,120]
[358281347,1744894268528,-1522.86016233,0.006856,120]
[358281348,1744894268537,-62207.84101717,0.00689,120]
[358281349,1744894268547,-67548.59045054,0.00689,120]
[358281350,1744894268557,-19674140.0,0.006899,120]
[358281351,1744894268567,-468.8162329,0.0068999,30]
[358281352,1744894268577,-200000.0,0.0069,120]
[358281353,1744894268586,-3566.2294039,0.0069,120]
[358281354,1744894268596,-3554.9142112,0.0069,120]
[358281355,1744894268606,-152.0,0.00695495,3]
[358281356,1744894268616,-56641.6202434,0.00695894,120]
[358281357,1744894268626,-3000.0,0.006985,50]
[358281358,1744894268636,-1000.0,0.0069863,120]
[358281359,1744894268646,-1000.0,0.0069863,120]
[358281360,1744894268657,-319.11796033,0.0069863,120]
[358281361,1744894268666,-1461.36310702,0.00699,120]
[358281362,1744894268676,-288.65993144,0.00699,120]
[358281363,1744894268686,-150.0,0.00699,120]
[358281364,1744894268697,-363.71360368,0.00699999,120]
[358281365,1744894268707,-182.64877669,0.00699999,120]
[358281366,1744894268717,-490.82424787,0.00699999,120]
[358281367,1744894268727,-50000.0,0.007,2]
[358281368,1744894268737,-50000.0,0.007,120]
[358281369,1744894268819,-200.0,0.007,120]
[358281370,1744894268829,-500.0,0.007,120]
[358281371,1744894268839,-20000.0,0.007,120]
[358281372,1744894268848,-2000.0,0.007,120]
[358281373,1744894268857,-3483.0,0.007,120]
[358281374,1744894268867,-100000.0,0.007,120]
[358281375,1744894268876,-100000.0,0.007,120]
[358281376,1744894268885,-100000.0,0.007,120]
[358281377,1744894268895,-1519.6183,0.007,120]
[358281378,1744894268905,-5000.0,0.007,120]
[358281379,1744894268914,-3601.0,0.007,120]
[358281380,1744894268924,-100000.0,0.007,120]
[358281381,1744894268933,-100000.0,0.007,120]
[358281382,1744894268942,-100000.0,0.007,120]
[358281383,1744894268952,-100000.0,0.007,120]
[358281384,1744894268961,-100000.0,0.007,120]
[358281385,1744894268971,-100000.0,0.007,120]
[358281386,1744894268979,-12276.223253,0.007,120]
[358281387,1744894268989,-11035.21,0.007002,2]
[358281388,1744894268999,-2207.04,0.007002,2]
[358281389,1744894269008,-441.41,0.007002,2]
[358281390,1744894269018,-11035.21,0.007024,2]
[358281391,1744894269028,-2207.04,0.007024,2]
[358281392,1744894269037,-441.41,0.007024,2]
[358281393,1744894269047,-222.0,0.00705,120]
[358281394,1744894269056,-11035.21,0.007094,2]
[358281395,1744894269066,-2207.04,0.007094,2]
[358281396,1744894269075,-441.41,0.007094,2]
[358281397,1744894269085,-997.0,0.0071,120]
[358281398,1744894269094,-303.03775367,0.00710504,120]
[358281399,1744894269103,-150.0,0.00710504,120]
[358281400,1744894269113,-150.0,0.00710504,120]
[358281401,1744894269123,-150.0,0.00710504,120]
[358281402,1744894269132,-150.0,0.00710504,120]
[358281403,1744894269141,-150.0,0.00710504,120]
[358281404,1744894269151,-150.0,0.00710504,120]
[358281405,1744894269160,-303.03775367,0.00711302,120]
[358281406,1744894269169,-150.0,0.00711362,120]
[358281407,1744894269178,-150.0,0.00711616,120]
[358281408,1744894269188,-303.03775367,0.00712099,120]
[358281409,1744894269198,-150.0,0.0071222,120]
[358281410,1744894269207,-150.0,0.00712728,120]
[358281411,1744894269217,-150.0,0.0071276,120]
[358281412,1744894269227,-303.03775367,0.00712896,120]
[358281413,1744894269236,-150.0,0.00713078,120]
[358281414,1744894269245,-303.03775367,0.00713694,120]
[358281415,1744894269254,-150.0,0.0071384,120]
[358281416,1744894269264,-150.0,0.00713936,120]
[358281417,1744894269274,-303.03775367,0.00714491,120]
[358281418,1744894269283,-150.0,0.00714795,120]
[358281419,1744894269293,-150.0,0.00714952,120]
[358281420,1744894269305,-150.0,0.00715015,120]
[358281421,1744894269315,-303.03775367,0.00715289,120]
[358281422,1744894269325,-150.0,0.00715653,120]
[358281423,1744894269335,-150.0,0.00716064,120]
[358281424,1744894269345,-303.03775367,0.00716086,120]
[358281425,1744894269355,-150.0,0.00716511,120]
[358281426,1744894269365,-303.03775367,0.00716883,120]
[358281427,1744894269374,-150.0,0.00717176,120]
[358281428,1744894269384,-150.0,0.00717271,120]
[358281429,1744894269394,-150.0,0.00717369,120]
[358281430,1744894269403,-303.03775367,0.00717681,120]
[358281431,1744894269413,-150.0,0.00718227,120]
[358281432,1744894269422,-150.0,0.00718287,120]
[358281433,1744894269431,-303.03775367,0.00718478,120]
[358281434,1744894269442,-150.0,0.00719085,120]
[358281435,1744894269452,-303.03775367,0.00719276,120]
[358281436,1744894269462,-150.0,0.00719399,120]
[358281437,1744894269472,-150.0,0.00719526,120]
[358281438,1744894269482,-150.0,0.00719943,120]
[358281439,1744894269491,-5000.0,0.0072,120]
[358281440,1744894269500,-401000.0,0.0072,120]
[358281441,1744894269511,-150.0,0.0072,120]
[358281442,1744894269521,-303.03775367,0.00720073,120]
[358281443,1744894269530,-150.0,0.00720511,120]
[358281444,1744894269540,-150.0,0.00720801,120]
[358281445,1744894269549,-303.03775367,0.00720871,120]
[358281446,1744894269559,-150.0,0.00721623,120]
[358281447,1744894269568,-150.0,0.00721659,120]
[358281448,1744894269578,-303.03775367,0.00721668,120]
[358281449,1744894269588,-150.0,0.00721782,120]
[358281450,1744894269598,-303.03775367,0.00722465,120]
[358281451,1744894269607,-150.0,0.00722517,120]
[358281452,1744894269617,-150.0,0.00722735,120]
[358281453,1744894269626,-303.03775367,0.00723263,120]
[358281454,1744894269636,-150.0,0.00723376,120]
[358281455,1744894269645,-150.0,0.00723847,120]
[358281456,1744894269655,-150.0,0.00724038,120]
[358281457,1744894269664,-303.03775367,0.0072406,120]
[358281458,1744894269674,-150.0,0.00724234,120]
[358281459,1744894269683,-200.0,0.00724769,120]
[358281460,1744894269693,-200.0,0.00724769,120]
[358281461,1744894269703,-200.0,0.00724769,120]
[358281462,1744894269713,-200.0,0.00724769,120]
[358281463,1744894269722,-200.0,0.00724769,120]
[358281464,1744894269732,-200.0,0.00724769,120]
[358281465,1744894269741,-200.0,0.00724769,120]
[358281466,1744894269751,-200.0,0.00724769,120]
[358281467,1744894269762,-200.0,0.00724769,120]
[358281468,1744894269773,-200.0,0.00724769,120]
[358281469,1744894269783,-200.0,0.00724769,120]
[358281470,1744894269792,-200.0,0.00724769,120]
[358281471,1744894269801,-200.0,0.00724769,120]
[358281472,1744894269811,-200.0,0.00724769,120]
[358281473,1744894269821,-200.0,0.00724769,120]
[358281474,1744894269833,-200.0,0.00724769,120]
[358281475,1744894269844,-200.0,0.00724769,120]
[358281476,1744894269853,-200.0,0.00724769,120]
[358281477,1744894269863,-200.0,0.00724769,120]
[358281478,1744894269873,-200.0,0.00724769,120]
[358281479,1744894269882,-200.0,0.00724769,120]
[358281480,1744894269892,-200.0,0.00724769,120]
[358281481,1744894269901,-200.0,0.00724769,120]
[358281482,1744894269910,-200.0,0.00724769,120]
[358281483,1744894269920,-200.0,0.00724769,120]
[358281484,1744894269930,-200.0,0.00724769,120]
[358281485,1744894269940,-200.0,0.00724769,120]
[358281486,1744894269950,-200.0,0.00724769,120]
[358281487,1744894269960,-200.0,0.00724769,120]
[358281488,1744894269971,-200.0,0.00724769,120]
[358281489,1744894269981,-200.0,0.00724769,120]
[358281490,1744894269991,-200.0,0.00724769,120]
[358281491,1744894270000,-200.0,0.00724769,120]
[358281492,1744894270009,-200.0,0.00724769,120]
[358281493,1744894270019,-285.0,0.00724769,120]
[358281494,1744894270029,-469.0,0.00724769,120]
[358281495,1744894270039,-303.03775367,0.00724858,120]
[358281496,1744894270049,-150.0,0.00724959,120]
[358281497,1744894270058,-6688.0,0.00725,120]
[358281498,1744894270068,-300.0,0.00725,120]
[358281499,1744894270078,-300.0,0.00725,120]
[358281500,1744894270087,-300.0,0.00725,120]
[358281501,1744894270097,-300.0,0.00725,120]
[358281502,1744894270106,-300.0,0.00725,120]
[358281503,1744894270115,-387.0,0.00725,120]
[358281504,1744894270125,-300.0,0.00725,120]
[358281505,1744894270134,-300.0,0.00725,120]
[358281506,1744894270143,-300.0,0.00725,120]
[358281507,1744894270152,-150.0,0.00725092,120]
[358281508,1744894270162,-171.42771428,0.00725452,120]
[358281509,1744894270171,-303.03775367,0.00725655,120]
[358281510,1744894270259,-150.0,0.0072595,120]
[358281511,1744894270269,-150.0,0.00726071,120]
[358281512,1744894270279,-150.0,0.00726293,120]
[358281513,1744894270288,-303.03775367,0.00726453,120]
[358281514,1744894270299,-2345.6352685,0.00726558,30]
[358281515,1744894270310,-150.0,0.00726808,120]
[358281516,1744894270319,-150.0,0.00727183,120]
[358281517,1744894270328,-303.03775367,0.0072725,120]
[358281518,1744894270337,-150.0,0.00727666,120]
[358281519,1744894270347,-300.0,0.00728,120]
[358281520,1744894270356,-300.0,0.00728,120]
[358281521,1744894270366,-300.0,0.00728,120]
[358281522,1744894270376,-300.0,0.00728,120]
[358281523,1744894270387,-300.0,0.00728,120]
[358281524,1744894270397,-300.0,0.00728,120]
[358281525,1744894270406,-303.03775367,0.00728047,120]
[358281526,1744894270416,-150.0,0.00728295,120]
[358281527,1744894270426,-150.0,0.00728524,120]
[358281528,1744894270436,-150.0,0.00728549,120]
[358281529,1744894270445,-303.03775367,0.00728845,120]
[358281530,1744894270455,-150.0,0.00729382,120]
[358281531,1744894270465,-150.0,0.00729406,120]
[358281532,1744894270474,-303.03775367,0.00729642,120]
[358281533,1744894270483,-2000.0,0.0073,120]
[358281534,1744894270494,-150.0,0.0073024,120]
[358281535,1744894270503,-150.0,0.0073024,120]
[358281536,1744894270513,-303.03775367,0.0073044,120]
[358281537,1744894270522,-150.0,0.00730518,120]
[358281538,1744894270533,-150.0,0.00730804,120]
[358281539,1744894270543,-150.0,0.00731098,120]
[358281540,1744894270552,-303.03775367,0.00731237,120]
[358281541,1744894270562,-150.0,0.0073163,120]
[358281542,1744894270571,-171.42771428,0.00731863,120]
[358281543,1744894270582,-150.0,0.00731957,120]
[358281544,1744894270591,-303.03775367,0.00732035,120]
[358281545,1744894270601,-150.0,0.00732144,120]
[358281546,1744894270611,-150.0,0.00732244,120]
[358281547,1744894270621,-150.0,0.00732281,120]
[358281548,1744894270631,-150.0,0.00732435,120]
[358281549,1744894270641,-150.0,0.00732467,120]
[358281550,1744894270650,-150.0,0.00732467,120]
[358281551,1744894270660,-150.0,0.00732564,120]
[358281552,1744894270670,-150.0,0.00732572,120]
[358281553,1744894270679,-150.0,0.00732742,120]
[358281554,1744894270689,-150.0,0.00732815,120]
[358281555,1744894270701,-303.03775367,0.00732832,120]
[358281556,1744894270711,-150.0,0.00732845,120]
[358281557,1744894270721,-150.0,0.00732913,120]
[358281558,1744894270731,-150.0,0.00732916,120]
[358281559,1744894270741,-300.0,0.00732971,120]
[358281560,1744894270751,-150.0,0.00732983,120]
[358281561,1744894270762,-150.0,0.0073306,120]
[358281562,1744894270772,-150.0,0.00733075,120]
[358281563,1744894270781,-150.0,0.00733112,120]
[358281564,1744894270791,-150.0,0.00733118,120]
[358281565,1744894270800,-150.0,0.00733135,120]
[358281566,1744894270810,-150.0,0.00733138,120]
[358281567,1744894270820,-150.0,0.0073314,120]
[358281568,1744894270829,-150.0,0.00733212,120]
[358281569,1744894270839,-150.0,0.00733348,120]
[358281570,1744894270849,-150.0,0.00733392,120]
[358281571,1744894270859,-150.0,0.00733465,120]
[358281572,1744894270868,-150.0,0.00733467,120]
[358281573,1744894270877,-150.0,0.00733481,120]
[358281574,1744894270886,-150.0,0.007335,120]
[358281575,1744894270896,-1000.0,0.00733513,120]
[358281576,1744894270905,-150.0,0.00733525,120]
[358281577,1744894270915,-150.0,0.00733555,120]
[358281578,1744894270924,-150.0,0.00733588,120]
[358281579,1744894270934,-150.0,0.00733598,120]
[358281580,1744894270943,-150.0,0.00733603,120]
[358281581,1744894270952,-1000.0,0.00733617,120]
[358281582,1744894270962,-303.03775367,0.00733629,120]
[358281583,1744894270971,-1000.0,0.00733634,120]
[358281584,1744894270980,-150.0,0.00733673,120]
[358281585,1744894270990,-1000.0,0.00733701,120]
[358281586,1744894271000,-150.0,0.00733704,120]
[358281587,1744894271009,-150.0,0.00733707,120]
[358281588,1744894271019,-150.0,0.00733713,120]
[358281589,1744894271029,-150.0,0.00733718,120]
[358281590,1744894271039,-150.0,0.00733726,120]
[358281591,1744894271049,-150.0,0.00733746,120]
[358281592,1744894271059,-1000.0,0.00733799,120]
[358281593,1744894271069,-150.0,0.00733809,120]
[358281594,1744894271080,-150.0,0.00733819,120]
[358281595,1744894271091,-150.0,0.00733823,120]
[358281596,1744894271100,-1000.0,0.00733844,120]
[358281597,1744894271110,-150.0,0.00733851,120]
[358281598,1744894271120,-150.0,0.00733854,120]
[358281599,1744894271129,-729.36998007,0.00733861,120]
[358281600,1744894271139,-150.0,0.00733876,120]
[358281601,1744894271149,-303.03775367,0.00734427,120]
[358281602,1744894271159,-150.0,0.00734531,120]
[358281603,1744894271168,-150.0,0.00734966,120]
[358281604,1744894271178,-486.0960688,0.00735,120]
[358281605,1744894271188,-6688.0,0.00735,120]
[358281606,1744894271197,-6688.0,0.00735,120]
[358281607,1744894271208,-5963.029999,0.00735,120]
[358281608,1744894271217,-688.0,0.00735,120]
[358281609,1744894271227,-303.03775367,0.00735224,120]
[358281610,1744894271236,-150.0,0.00735226,120]
[358281611,1744894271246,-150.0,0.00735247,120]
[358281612,1744894271256,-150.0,0.00735315,120]
[358281613,1744894271266,-150.0,0.00735345,120]
[358281614,1744894271276,-150.0,0.00735389,120]
[358281615,1744894271286,-150.0,0.00735454,120]
[358281616,1744894271297,-150.0,0.00735645,120]
[358281617,1744894271310,-150.0,0.00735652,120]
[358281618,1744894271319,-150.0,0.00735708,120]
[358281619,1744894271329,-150.0,0.00735709,120]
[358281620,1744894271339,-150.0,0.00735721,120]
[358281621,1744894271348,-150.0,0.00735785,120]
[358281622,1744894271357,-150.0,0.00735791,120]
[358281623,1744894271367,-150.0,0.00735793,120]
[358281624,1744894271376,-150.0,0.00735807,120]
[358281625,1744894271386,-150.0,0.00735841,120]
[358281626,1744894271396,-150.0,0.00735864,120]
[358281627,1744894271406,-150.0,0.00735869,120]
[358281628,1744894271416,-150.0,0.00735885,120]
[358281629,1744894271425,-150.0,0.00735904,120]
[358281630,1744894271435,-150.0,0.00735911,120]
[358281631,1744894271445,-150.0,0.00735979,120]
[358281632,1744894271455,-49875.04999999,0.00736,120]
[358281633,1744894271465,-150.0,0.00736008,120]
[358281634,1744894271474,-303.03775367,0.00736022,120]
[358281635,1744894271485,-150.0,0.0073604,120]
[358281636,1744894271495,-150.0,0.00736053,120]
[358281637,1744894271504,-150.0,0.00736056,120]
[358281638,1744894271514,-150.0,0.00736066,120]
[358281639,1744894271523,-150.0,0.00736078,120]
[358281640,1744894271599,-150.0,0.00736082,120]
[358281641,1744894271609,-150.0,0.00736083,120]
[358281642,1744894271619,-150.0,0.00736088,120]
[358281643,1744894271628,-150.0,0.00736113,120]
[358281644,1744894271638,-150.0,0.00736126,120]
[358281645,1744894271647,-150.0,0.00736128,120]
[358281646,1744894271657,-150.0,0.0073616,120]
[358281647,1744894271667,-300.0,0.00736191,120]
[358281648,1744894271676,-150.0,0.0073621,120]
[358281649,1744894271686,-150.0,0.00736217,120]
[358281650,1744894271697,-150.0,0.00736237,120]
[358281651,1744894271707,-150.0,0.00736243,120]
[358281652,1744894271717,-150.0,0.00736247,120]
[358281653,1744894271727,-150.0,0.00736285,120]
[358281654,1744894271737,-150.0,0.00736302,120]
[358281655,1744894271746,-150.0,0.00736314,120]
[358281656,1744894271756,-150.0,0.00736318,120]
[358281657,1744894271772,-150.0,0.00736399,120]
[358281658,1744894271781,-150.0,0.00736399,120]
[358281659,1744894271790,-150.0,0.00736402,120]
[358281660,1744894271799,-150.0,0.0073641,120]
[358281661,1744894271808,-300.0,0.0073643,120]
[358281662,1744894271818,-150.0,0.00736433,120]
[358281663,1744894271828,-150.0,0.00736509,120]
[358281664,1744894271837,-150.0,0.00736528,120]
[358281665,1744894271848,-1000.0,0.00736631,120]
[358281666,1744894271857,-150.0,0.00736641,120]
[358281667,1744894271867,-150.0,0.00736678,120]
[358281668,1744894271876,-150.0,0.00736683,120]
[358281669,1744894271885,-1000.0,0.0073669,120]
[358281670,1744894271894,-150.0,0.0073671,120]
[358281671,1744894271903,-150.0,0.0073674,120]
[358281672,1744894271913,-1000.0,0.00736747,120]
[358281673,1744894271923,-150.0,0.00736773,120]
[358281674,1744894271932,-150.0,0.00736777,120]
[358281675,1744894271942,-303.03775367,0.00736819,120]
[358281676,1744894271952,-150.0,0.0073683,120]
[358281677,1744894271962,-1000.0,0.00736836,120]
[358281678,1744894271972,-300.0,0.0073684,120]
[358281679,1744894271981,-150.0,0.00736846,120]
[358281680,1744894271991,-150.0,0.00736851,120]
[358281681,1744894272000,-300.0,0.00736877,120]
[358281682,1744894272010,-150.0,0.00736884,120]
[358281683,1744894272019,-150.0,0.00736887,120]
[358281684,1744894272030,-150.0,0.00736918,120]
[358281685,1744894272040,-150.0,0.00736978,120]
[358281686,1744894272050,-150.0,0.00736997,120]
[358281687,1744894272060,-151.95279466,0.00736999,120]
[358281688,1744894272071,-9615.24611219,0.00737,120]
[358281689,1744894272082,-223.0,0.00737,120]
[358281690,1744894272092,-500.0,0.00737,120]
[358281691,1744894272103,-3886.8728026,0.00737066,120]
[358281692,1744894272112,-32685.7231773,0.00737066,30]
[358281693,1744894272122,-5687.2660573,0.00737066,30]
[358281694,1744894272132,-150.0,0.00737105,120]
[358281695,1744894272141,-150.0,0.0073719,120]
[358281696,1744894272151,-1161.4348548,0.00737292,120]
[358281697,1744894272161,-150.0,0.00737571,120]
[358281698,1744894272170,-303.03775367,0.00737616,120]
[358281699,1744894272180,-150.0,0.00737963,120]
[358281700,1744894272190,-171.42771428,0.00738301,120]
[358281701,1744894272200,-150.0,0.00738302,120]
[358281702,1744894272210,-303.03775367,0.00738414,120]
[358281703,1744894272220,-150.0,0.00738821,120]
[358281704,1744894272230,-303.03775367,0.00739211,120]
[358281705,1744894272240,-150.0,0.00739414,120]
[358281706,1744894272250,-150.0,0.00739679,120]
[358281707,1744894272261,-150.0,0.00739826,120]
[358281708,1744894272270,-303.03775367,0.00740009,120]
[358281709,1744894272280,-150.0,0.00740525,120]
[358281710,1744894272289,-150.0,0.00740537,120]
[358281711,1744894272303,-303.03775367,0.00740806,120]
[358281712,1744894272312,-163.85207468,0.00741,120]
[358281713,1744894272321,-150.0,0.00741396,120]
[358281714,1744894272331,-303.03775367,0.00741604,120]
[358281715,1744894272341,-150.0,0.00741637,120]
[358281716,1744894272351,-150.0,0.00742082,120]
[358281717,1744894272361,-150.0,0.00742254,120]
[358281718,1744894272370,-303.03775367,0.00742401,120]
[358281719,1744894272380,-150.0,0.00742749,120]
[358281720,1744894272390,-150.0,0.00743112,120]
[358281721,1744894272400,-303.03775367,0.00743198,120]
[358281722,1744894272410,-150.0,0.00743861,120]
[358281723,1744894272419,-150.0,0.0074397,120]
[358281724,1744894272429,-303.03775367,0.00743996,120]
[358281725,1744894272439,-150.0,0.00744338,120]
[358281726,1744894272449,-171.42771428,0.00744712,120]
[358281727,1744894272459,-303.03775367,0.00744793,120]
[358281728,1744894272469,-150.0,0.00744828,120]
[358281729,1744894272479,-150.0,0.00744973,120]
[358281730,1744894272488,-4513.089999,0.00745,120]
[358281731,1744894272498,-303.03775367,0.00745591,120]
[358281732,1744894272508,-2000.0,0.007456,120]
[358281733,1744894272519,-150.0,0.00745686,120]
[358281734,1744894272530,-150.0,0.00746085,120]
[358281735,1744894272540,-154.62,0.007462,87]
[358281736,1744894272551,-154.62,0.007462,87]
[358281737,1744894272561,-154.62,0.007462,87]
[358281738,1744894272571,-154.62,0.007462,87]
[358281739,1744894272581,-303.03775367,0.00746388,120]
[358281740,1744894272591,-150.0,0.00746544,120]
[358281741,1744894272602,-150.0,0.00746593,120]
[358281742,1744894272612,-303.03775367,0.00747186,120]
[358281743,1744894272622,-150.0,0.00747197,120]
[358281744,1744894272633,-150.0,0.00747402,120]
[358281745,1744894272643,-10000.0,0.007478,120]
[358281746,1744894272653,-303.03775367,0.00747983,120]
[358281747,1744894272663,-150.0,0.0074826,120]
[358281748,1744894272673,-150.0,0.00748309,120]
[358281749,1744894272683,-303.03775367,0.0074878,120]
[358281750,1744894272695,-10000.0,0.007488,120]
[358281751,1744894272705,-150.0,0.00748849,120]
[358281752,1744894272715,-10000.0,0.0074888,120]
[358281753,1744894272724,-10000.0,0.007489,120]
[358281754,1744894272734,-150.0,0.00749118,120]
[358281755,1744894272745,-4755.1210692,0.00749387,30]
[358281756,1744894272755,-150.0,0.00749421,120]
[358281757,1744894272765,-970.5582982,0.00749477,120]
[358281758,1744894272775,-3251.8758829,0.00749477,120]
[358281759,1744894272785,-27328.521187,0.00749477,30]
[358281760,1744894272863,-303.03775367,0.00749578,120]
[358281761,1744894272873,-30306.94610351,0.007499,120]
[358281762,1744894272883,-10000.0,0.007499,120]
[358281763,1744894272892,-300.0,0.0074997,120]
[358281764,1744894272902,-400.0,0.0074997,120]
[358281765,1744894272912,-150.0,0.00749977,120]
[358281766,1744894272921,-150.0,0.00749977,120]
[358281767,1744894272931,-11100.7034821,0.0074999,120]
[358281768,1744894272941,-50000.0,0.0075,120]
[358281769,1744894272951,-1000.0,0.0075,120]
[358281770,1744894272963,-500.0,0.0075,120]
[358281771,1744894272972,-1494.05,0.0075,120]